[Event "Late-Titled-Tuesday-Blitz-March-26-2024"]
[Site "Chess.com"]
[Date "2024.03.26"]
[Round "7"]
[White "The_Machine04"]
[Black "Slovak_fighter2000"]
[Result "0-1"]
[WhiteElo "2773"]
[BlackElo "2615"]
[TimeControl "180+1"]
[EndTime "15:19:52 PDT"]
[Termination "Slovak_fighter2000 won by checkmate"]

1. d4 {[%clk 0:03:00.9]} 1... Nf6 {[%clk 0:02:59.6]} 2. Nf3 {[%clk 0:03:01]}
2... g6 {[%clk 0:02:58.4]} 3. Nbd2 {[%clk 0:03:01.2]} 3... d5 {[%clk 0:02:57.1]}
4. e3 {[%clk 0:03:01.5]} 4... Bg7 {[%clk 0:02:56.5]} 5. b4 {[%clk 0:03:01.3]}
5... O-O {[%clk 0:02:55.7]} 6. c4 {[%clk 0:03:01.2]} 6... a5 {[%clk 0:02:46.4]}
7. b5 {[%clk 0:03:01]} 7... Bg4 {[%clk 0:02:40.4]} 8. Be2 {[%clk 0:02:58.8]}
8... Bxf3 {[%clk 0:02:32]} 9. Bxf3 {[%clk 0:02:56.3]} 9... c6 {[%clk 0:02:31.3]}
10. a4 {[%clk 0:02:55.4]} 10... e6 {[%clk 0:02:29.4]} 11. O-O {[%clk 0:02:54.1]}
11... Nbd7 {[%clk 0:02:27.9]} 12. Ba3 {[%clk 0:02:53.1]} 12... Re8 {[%clk
0:02:27.7]} 13. cxd5 {[%clk 0:02:53.1]} 13... cxd5 {[%clk 0:02:26.8]} 14. Rc1
{[%clk 0:02:52.8]} 14... Bf8 {[%clk 0:02:14.7]} 15. Qb3 {[%clk 0:02:48]} 15...
Bxa3 {[%clk 0:02:09.7]} 16. Qxa3 {[%clk 0:02:48.9]} 16... Qe7 {[%clk 0:01:57.6]}
17. Qxe7 {[%clk 0:02:47.3]} 17... Rxe7 {[%clk 0:01:58.5]} 18. Rc7 {[%clk
0:02:47.8]} 18... Ra7 {[%clk 0:01:55.2]} 19. Rfc1 {[%clk 0:02:35.3]} 19... Ne8
{[%clk 0:01:50.3]} 20. Rc8 {[%clk 0:02:34.8]} 20... Nb6 {[%clk 0:01:47.6]} 21.
Rb8 {[%clk 0:02:33.4]} 21... Kg7 {[%clk 0:01:39.3]} 22. Bd1 {[%clk 0:02:28.7]}
22... Nd6 {[%clk 0:01:34.1]} 23. Bb3 {[%clk 0:02:25.7]} 23... Ra8 {[%clk
0:01:27.4]} 24. Rxa8 {[%clk 0:02:25.7]} 24... Nxa8 {[%clk 0:01:26.3]} 25. f3
{[%clk 0:02:25]} 25... Rc7 {[%clk 0:01:22.4]} 26. Rxc7 {[%clk 0:02:23.5]} 26...
Nxc7 {[%clk 0:01:23.3]} 27. Kf2 {[%clk 0:02:22.8]} 27... f5 {[%clk 0:01:17]} 28.
Ke2 {[%clk 0:02:22.5]} 28... b6 {[%clk 0:01:14.4]} 29. Kd3 {[%clk 0:02:20.7]}
29... Kf6 {[%clk 0:01:13.9]} 30. e4 {[%clk 0:02:19.6]} 30... fxe4+ {[%clk
0:01:13.2]} 31. fxe4 {[%clk 0:02:20.5]} 31... dxe4+ {[%clk 0:01:13.8]} 32. Nxe4+
{[%clk 0:02:21.4]} 32... Nxe4 {[%clk 0:01:13.9]} 33. Kxe4 {[%clk 0:02:22.3]}
33... Ne8 {[%clk 0:01:11.1]} 34. h4 {[%clk 0:02:17.7]} 34... Nd6+ {[%clk
0:01:11.4]} 35. Kf4 {[%clk 0:02:18]} 35... h6 {[%clk 0:01:10.3]} 36. Bc2 {[%clk
0:02:13.5]} 36... g5+ {[%clk 0:01:08.8]} 37. hxg5+ {[%clk 0:02:13.9]} 37...
hxg5+ {[%clk 0:01:09.7]} 38. Kf3 {[%clk 0:02:14.5]} 38... e5 {[%clk 0:01:07.4]}
39. d5 {[%clk 0:02:04]} 39... Nc8 {[%clk 0:01:01.8]} 40. Bb1 {[%clk 0:01:50.1]}
40... Nd6 {[%clk 0:01:00.7]} 41. Bd3 {[%clk 0:01:50.5]} 41... Nc8 {[%clk
0:01:00.4]} 42. Kg4 {[%clk 0:01:23.8]} 42... Nd6 {[%clk 0:00:57.3]} 43. Bb1
{[%clk 0:01:16.4]} 43... e4 {[%clk 0:00:46.7]} 44. Bc2 {[%clk 0:01:15.8]} 44...
Kg6 {[%clk 0:00:42.7]} 45. Bb1 {[%clk 0:01:01.4]} 45... Kf6 {[%clk 0:00:37.8]}
46. Bc2 {[%clk 0:00:48.2]} 46... Kg6 {[%clk 0:00:31.3]} 47. g3 {[%clk
0:00:46.1]} 47... Kf6 {[%clk 0:00:31.2]} 48. Kh5 {[%clk 0:00:46]} 48... Kf5
{[%clk 0:00:28.1]} 49. Bb1 {[%clk 0:00:44.5]} 49... Kf6 {[%clk 0:00:25.6]} 50.
Bc2 {[%clk 0:00:26.1]} 50... Kf5 {[%clk 0:00:19.5]} 51. Bd1 {[%clk 0:00:26.1]}
51... e3 {[%clk 0:00:17.3]} 52. Bg4+ {[%clk 0:00:15.7]} 52... Kf6 {[%clk
0:00:17.3]} 53. Be2 {[%clk 0:00:15.3]} 53... Ne4 {[%clk 0:00:12.3]} 54. Kg4
{[%clk 0:00:15.3]} 54... Nc3 {[%clk 0:00:12.9]} 55. Kf3 {[%clk 0:00:12.6]} 55...
Nxd5 {[%clk 0:00:11.5]} 56. Bc4 {[%clk 0:00:06.5]} 56... Nc3 {[%clk 0:00:08.7]}
57. Bb3 {[%clk 0:00:05.5]} 57... e2 {[%clk 0:00:08.9]} 58. Kf2 {[%clk
0:00:05.7]} 58... Ke5 {[%clk 0:00:08.8]} 59. Bc4 {[%clk 0:00:05.6]} 59... Kd4
{[%clk 0:00:09]} 60. Bxe2 {[%clk 0:00:05.9]} 60... Nxe2 {[%clk 0:00:05.9]} 61.
Kxe2 {[%clk 0:00:06.8]} 61... Kc3 {[%clk 0:00:06.3]} 62. Kf3 {[%clk 0:00:06.9]}
62... Kb4 {[%clk 0:00:07.2]} 63. Kg4 {[%clk 0:00:07.4]} 63... Kxa4 {[%clk
0:00:08.1]} 64. Kxg5 {[%clk 0:00:08.3]} 64... Kxb5 {[%clk 0:00:07.7]} 65. Kf4
{[%clk 0:00:07.3]} 65... a4 {[%clk 0:00:08.2]} 66. g4 {[%clk 0:00:07.9]} 66...
a3 {[%clk 0:00:09.1]} 67. g5 {[%clk 0:00:08.6]} 67... a2 {[%clk 0:00:10]} 68. g6
{[%clk 0:00:07.9]} 68... a1=Q {[%clk 0:00:09.9]} 69. Kf5 {[%clk 0:00:08.8]}
69... Qg7 {[%clk 0:00:09.8]} 70. Ke6 {[%clk 0:00:09.7]} 70... Kc4 {[%clk
0:00:10.1]} 71. Kd6 {[%clk 0:00:10]} 71... b5 {[%clk 0:00:11]} 72. Kc6 {[%clk
0:00:10.9]} 72... b4 {[%clk 0:00:11.5]} 73. Kd6 {[%clk 0:00:11.1]} 73... Qxg6+
{[%clk 0:00:12.4]} 74. Kc7 {[%clk 0:00:11.4]} 74... Kc5 {[%clk 0:00:12.7]} 75.
Kc8 {[%clk 0:00:12.3]} 75... Kc6 {[%clk 0:00:12.1]} 76. Kb8 {[%clk 0:00:13.2]}
76... Qf7 {[%clk 0:00:12]} 77. Ka8 {[%clk 0:00:14.1]} 77... Qb7# {[%clk
0:00:12.5]} 0-1

[Event "Late-Titled-Tuesday-Blitz-March-26-2024"]
[Site "Chess.com"]
[Date "2024.03.26"]
[Round "7"]
[White "Adar_07"]
[Black "karinachess1"]
[Result "1-0"]
[WhiteElo "2780"]
[BlackElo "2578"]
[TimeControl "180+1"]
[EndTime "15:19:56 PDT"]
[Termination "Adar_07 won on time"]

1. e4 {[%clk 0:03:00.9]} 1... e5 {[%clk 0:02:59.7]} 2. Nf3 {[%clk 0:03:00.6]}
2... Nc6 {[%clk 0:02:59.6]} 3. Bb5 {[%clk 0:03:01.2]} 3... Nf6 {[%clk
0:02:59.1]} 4. O-O {[%clk 0:03:01.8]} 4... Nxe4 {[%clk 0:02:58.9]} 5. Re1 {[%clk
0:03:02.4]} 5... Nd6 {[%clk 0:02:58.7]} 6. Nxe5 {[%clk 0:03:03]} 6... Nxe5
{[%clk 0:02:58.9]} 7. Rxe5+ {[%clk 0:03:03.9]} 7... Be7 {[%clk 0:02:59.3]} 8.
Bf1 {[%clk 0:03:04.6]} 8... O-O {[%clk 0:02:59.3]} 9. d4 {[%clk 0:03:05.2]} 9...
Bf6 {[%clk 0:02:56.3]} 10. Bd3 {[%clk 0:03:05.7]} 10... Ne8 {[%clk 0:02:34.7]}
11. Nc3 {[%clk 0:02:43.6]} 11... d6 {[%clk 0:02:34.4]} 12. Re1 {[%clk
0:02:33.7]} 12... g6 {[%clk 0:02:31.3]} 13. Nd5 {[%clk 0:02:02.7]} 13... c6
{[%clk 0:02:14.8]} 14. Nxf6+ {[%clk 0:02:00.1]} 14... Qxf6 {[%clk 0:02:15.7]}
15. Bh6 {[%clk 0:01:25.7]} 15... Ng7 {[%clk 0:02:15.1]} 16. c3 {[%clk
0:01:25.3]} 16... Bd7 {[%clk 0:02:05.7]} 17. Qd2 {[%clk 0:01:18.8]} 17... Qd8
{[%clk 0:01:33.2]} 18. Qf4 {[%clk 0:00:49.8]} 18... Be6 {[%clk 0:01:33.2]} 19.
Bg5 {[%clk 0:00:45.6]} 19... f6 {[%clk 0:01:30.6]} 20. Bh6 {[%clk 0:00:45.4]}
20... Qd7 {[%clk 0:01:30.9]} 21. Re2 {[%clk 0:00:32.4]} 21... Rae8 {[%clk
0:01:24.6]} 22. Rae1 {[%clk 0:00:31.9]} 22... g5 {[%clk 0:00:32.7]} 23. Qg3
{[%clk 0:00:08]} 23... Bf5 {[%clk 0:00:30.1]} 24. Bxg7 {[%clk 0:00:01.7]} 24...
Rxe2 {[%clk 0:00:25.3]} 25. Bxe2 {[%clk 0:00:01.6]} 25... Kxg7 {[%clk
0:00:24.9]} 26. h4 {[%clk 0:00:02.5]} 26... h6 {[%clk 0:00:24.8]} 27. f4 {[%clk
0:00:02.9]} 27... g4 {[%clk 0:00:24]} 28. h5 {[%clk 0:00:03]} 28... Re8 {[%clk
0:00:23.5]} 29. Bd1 {[%clk 0:00:03.2]} 29... Rxe1+ {[%clk 0:00:23]} 30. Qxe1
{[%clk 0:00:04.1]} 30... Qe6 {[%clk 0:00:22.5]} 31. Qxe6 {[%clk 0:00:03.9]}
31... Bxe6 {[%clk 0:00:23.4]} 32. b3 {[%clk 0:00:04]} 32... f5 {[%clk
0:00:23.7]} 33. Kf2 {[%clk 0:00:03.9]} 33... Kf6 {[%clk 0:00:24.2]} 34. Kg3
{[%clk 0:00:04.3]} 34... c5 {[%clk 0:00:24.3]} 35. Kh4 {[%clk 0:00:02.9]} 35...
b6 {[%clk 0:00:24.4]} 36. Be2 {[%clk 0:00:02.6]} 36... Bd5 {[%clk 0:00:24.5]}
37. g3 {[%clk 0:00:02.2]} 37... Be4 {[%clk 0:00:24.9]} 38. Bc4 {[%clk
0:00:01.5]} 38... Bb1 {[%clk 0:00:24.4]} 39. b4 {[%clk 0:00:01.7]} 39... Be4
{[%clk 0:00:22.6]} 40. a3 {[%clk 0:00:02]} 40... a5 {[%clk 0:00:22.3]} 41. Bb3
{[%clk 0:00:02.2]} 41... cxb4 {[%clk 0:00:21.2]} 42. axb4 {[%clk 0:00:02.5]}
42... Bc6 {[%clk 0:00:20.3]} 43. Ba2 {[%clk 0:00:01.6]} 43... a4 {[%clk
0:00:19.8]} 44. c4 {[%clk 0:00:01.7]} 44... a3 {[%clk 0:00:19.6]} 45. b5 {[%clk
0:00:01.3]} 45... Be4 {[%clk 0:00:19.4]} 46. Bb3 {[%clk 0:00:01.6]} 46... Bd3
{[%clk 0:00:18.4]} 47. Ba2 {[%clk 0:00:01.5]} 47... Bc2 {[%clk 0:00:17.6]} 48.
d5 {[%clk 0:00:01.2]} 48... Bd1 {[%clk 0:00:14.9]} 49. c5 {[%clk 0:00:01.5]}
49... dxc5 {[%clk 0:00:14.8]} 50. d6 {[%clk 0:00:02.1]} 50... Be2 {[%clk
0:00:13]} 51. Bd5 {[%clk 0:00:01.7]} 51... Bxb5 {[%clk 0:00:12.1]} 52. d7 {[%clk
0:00:02.2]} 52... Bxd7 {[%clk 0:00:12.3]} 53. Ba2 {[%clk 0:00:02.4]} 53... b5
{[%clk 0:00:12.2]} 54. Bc4 {[%clk 0:00:02.6]} 54... b4 {[%clk 0:00:11.5]} 55.
Bb3 {[%clk 0:00:03.3]} 55... Bb5 {[%clk 0:00:10.5]} 56. Bc4 {[%clk 0:00:03.6]}
56... Bc6 {[%clk 0:00:10.1]} 57. Bd5 {[%clk 0:00:04]} 57... Be8 {[%clk
0:00:10.7]} 58. Bf7 {[%clk 0:00:04.4]} 58... Bc6 {[%clk 0:00:08.9]} 59. Bd5
{[%clk 0:00:04.7]} 59... b3 {[%clk 0:00:07.1]} 60. Bxb3 {[%clk 0:00:03.4]} 60...
Be4 {[%clk 0:00:06]} 61. Bd5 {[%clk 0:00:03.3]} 61... Bc2 {[%clk 0:00:05]} 62.
Bb3 {[%clk 0:00:03.3]} 62... Bd3 {[%clk 0:00:03.7]} 63. Bc4 {[%clk 0:00:03.6]}
63... Be4 {[%clk 0:00:03.5]} 64. Ba2 {[%clk 0:00:03.6]} 64... Ke7 {[%clk
0:00:03.6]} 65. Bd5 {[%clk 0:00:04.2]} 65... Kd6 {[%clk 0:00:03.8]} 66. Bc4
{[%clk 0:00:04.8]} 66... Kc6 {[%clk 0:00:03.3]} 67. Bf7 {[%clk 0:00:05.1]} 67...
Kb6 {[%clk 0:00:03.6]} 68. Bb3 {[%clk 0:00:05.2]} 68... Ka5 {[%clk 0:00:03.9]}
69. Bc4 {[%clk 0:00:05.7]} 69... Kb4 {[%clk 0:00:04.3]} 70. Ba2 {[%clk
0:00:06.3]} 70... Kc3 {[%clk 0:00:04.2]} 71. Be6 {[%clk 0:00:06.3]} 71... Kb2
{[%clk 0:00:04.4]} 72. Ba2 {[%clk 0:00:06.5]} 72... Bc6 {[%clk 0:00:04.7]} 73.
Bc4 {[%clk 0:00:06.6]} 73... Be8 {[%clk 0:00:04.7]} 74. Bf7 {[%clk 0:00:07.4]}
74... Ba4 {[%clk 0:00:04.5]} 75. Ba2 {[%clk 0:00:07.5]} 75... Bb5 {[%clk
0:00:02]} 76. Bc4 {[%clk 0:00:07.5]} 76... Bd7 {[%clk 0:00:01.7]} 77. Bf7 {[%clk
0:00:08.4]} 1-0

[Event "Late-Titled-Tuesday-Blitz-March-26-2024"]
[Site "Chess.com"]
[Date "2024.03.26"]
[Round "7"]
[White "Hirna2005"]
[Black "b_6"]
[Result "1-0"]
[WhiteElo "2323"]
[BlackElo "2475"]
[TimeControl "180+1"]
[EndTime "15:20:09 PDT"]
[Termination "Hirna2005 won on time"]

1. e4 {[%clk 0:03:00.9]} 1... c5 {[%clk 0:02:59.4]} 2. c3 {[%clk 0:03:00.8]}
2... Nf6 {[%clk 0:02:56.4]} 3. e5 {[%clk 0:03:00.8]} 3... Nd5 {[%clk 0:02:56.9]}
4. Nf3 {[%clk 0:03:01.4]} 4... e6 {[%clk 0:02:56.3]} 5. d4 {[%clk 0:03:01.1]}
5... cxd4 {[%clk 0:02:57.2]} 6. cxd4 {[%clk 0:03:00.4]} 6... d6 {[%clk
0:02:57.6]} 7. Nc3 {[%clk 0:02:58.7]} 7... Nxc3 {[%clk 0:02:57.5]} 8. bxc3
{[%clk 0:02:58.4]} 8... Qc7 {[%clk 0:02:58.4]} 9. Bd2 {[%clk 0:02:57.4]} 9...
Nd7 {[%clk 0:02:52.9]} 10. exd6 {[%clk 0:02:54.8]} 10... Bxd6 {[%clk 0:02:53.8]}
11. Bd3 {[%clk 0:02:54.7]} 11... b6 {[%clk 0:02:51.4]} 12. h3 {[%clk 0:02:52.6]}
12... Bb7 {[%clk 0:02:51.1]} 13. O-O {[%clk 0:02:51.4]} 13... O-O {[%clk
0:02:47.8]} 14. Qe2 {[%clk 0:02:50.8]} 14... Bf4 {[%clk 0:02:38.7]} 15. a4
{[%clk 0:02:30.5]} 15... Bxd2 {[%clk 0:02:35.7]} 16. Qxd2 {[%clk 0:02:24.2]}
16... Bxf3 {[%clk 0:02:30.3]} 17. gxf3 {[%clk 0:02:24]} 17... Nf6 {[%clk
0:02:10.7]} 18. a5 {[%clk 0:02:14.7]} 18... Nd5 {[%clk 0:02:06.2]} 19. axb6
{[%clk 0:02:12.2]} 19... axb6 {[%clk 0:02:04.2]} 20. Rxa8 {[%clk 0:02:11.6]}
20... Rxa8 {[%clk 0:02:05.1]} 21. Be4 {[%clk 0:02:11.9]} 21... Rc8 {[%clk
0:01:54.4]} 22. Bxd5 {[%clk 0:02:11.1]} 22... exd5 {[%clk 0:01:55.3]} 23. Rc1
{[%clk 0:02:11.1]} 23... h6 {[%clk 0:01:46.3]} 24. Qe3 {[%clk 0:02:09.1]} 24...
Qc6 {[%clk 0:01:39.8]} 25. Qe5 {[%clk 0:01:54.2]} 25... b5 {[%clk 0:01:36.1]}
26. Kh2 {[%clk 0:01:46.6]} 26... Qc7 {[%clk 0:01:16.2]} 27. Qxc7 {[%clk
0:01:38.3]} 27... Rxc7 {[%clk 0:01:17.1]} 28. Rb1 {[%clk 0:01:38.5]} 28... Rxc3
{[%clk 0:01:15.8]} 29. Rxb5 {[%clk 0:01:38.1]} 29... Rxf3 {[%clk 0:01:15.3]} 30.
Kg2 {[%clk 0:01:27.6]} 30... Rf5 {[%clk 0:01:15.1]} 31. Kg3 {[%clk 0:01:26.8]}
31... g6 {[%clk 0:01:14.5]} 32. f4 {[%clk 0:01:25.9]} 32... Kg7 {[%clk
0:01:13.5]} 33. h4 {[%clk 0:01:20.6]} 33... Rh5 {[%clk 0:01:08.8]} 34. Kg4
{[%clk 0:01:14.5]} 34... Rf5 {[%clk 0:01:07.6]} 35. Rb7 {[%clk 0:01:04.3]} 35...
Kf6 {[%clk 0:01:04.6]} 36. Rb6+ {[%clk 0:01:04.6]} 36... Ke7 {[%clk 0:01:03.9]}
37. Ra6 {[%clk 0:01:04.5]} 37... Kd7 {[%clk 0:01:03.2]} 38. Rb6 {[%clk
0:01:03.5]} 38... Kc7 {[%clk 0:01:03.2]} 39. Ra6 {[%clk 0:01:02.8]} 39... Kd7
{[%clk 0:00:59.6]} 40. Rb6 {[%clk 0:01:02.2]} 40... Ke7 {[%clk 0:00:59.5]} 41.
Ra6 {[%clk 0:01:01.6]} 41... Rf6 {[%clk 0:00:57]} 42. Ra7+ {[%clk 0:01:01.2]}
42... Ke8 {[%clk 0:00:52.9]} 43. Ra8+ {[%clk 0:01:00.2]} 43... Kd7 {[%clk
0:00:53.1]} 44. Ra7+ {[%clk 0:01:00.6]} 44... Kc8 {[%clk 0:00:49.1]} 45. Kg3
{[%clk 0:00:49.4]} 45... Rf5 {[%clk 0:00:34.8]} 46. Kg4 {[%clk 0:00:47]} 46...
Kb8 {[%clk 0:00:34.2]} 47. Rd7 {[%clk 0:00:45.9]} 47... Kc8 {[%clk 0:00:33.5]}
48. Ra7 {[%clk 0:00:43.9]} 48... Rf6 {[%clk 0:00:33.6]} 49. Kg3 {[%clk
0:00:43.3]} 49... h5 {[%clk 0:00:33.1]} 50. Kf3 {[%clk 0:00:40.1]} 50... Kd8
{[%clk 0:00:28.1]} 51. Rb7 {[%clk 0:00:39.1]} 51... Ke8 {[%clk 0:00:27.5]} 52.
Rb8+ {[%clk 0:00:37.1]} 52... Ke7 {[%clk 0:00:27.4]} 53. Rb7+ {[%clk 0:00:37.5]}
53... Kf8 {[%clk 0:00:27.1]} 54. Rd7 {[%clk 0:00:35.9]} 54... Rf5 {[%clk
0:00:26.6]} 55. Ke3 {[%clk 0:00:33.3]} 55... Kg7 {[%clk 0:00:25.4]} 56. Kf3
{[%clk 0:00:32.5]} 56... Kh6 {[%clk 0:00:25.4]} 57. Kg3 {[%clk 0:00:32.3]} 57...
Kg7 {[%clk 0:00:22.5]} 58. Kf3 {[%clk 0:00:31.8]} 58... Kf6 {[%clk 0:00:22.9]}
59. Kg3 {[%clk 0:00:27.4]} 59... Ke6 {[%clk 0:00:22.9]} 60. Ra7 {[%clk
0:00:27.5]} 60... Kd6 {[%clk 0:00:22.2]} 61. Ra6+ {[%clk 0:00:26.5]} 61... Kc7
{[%clk 0:00:22.2]} 62. Kf3 {[%clk 0:00:26.2]} 62... Kb7 {[%clk 0:00:20.1]} 63.
Rd6 {[%clk 0:00:26.4]} 63... Kc7 {[%clk 0:00:18.9]} 64. Ra6 {[%clk 0:00:26.2]}
64... Kd7 {[%clk 0:00:18.4]} 65. Kg3 {[%clk 0:00:25.1]} 65... Ke7 {[%clk
0:00:17.7]} 66. Kf3 {[%clk 0:00:22.5]} 66... Rf6 {[%clk 0:00:15.5]} 67. Ra7+
{[%clk 0:00:21.8]} 67... Ke8 {[%clk 0:00:15.1]} 68. Ra5 {[%clk 0:00:21.3]} 68...
Rd6 {[%clk 0:00:14.8]} 69. f5 {[%clk 0:00:21.7]} 69... gxf5 {[%clk 0:00:13.2]}
70. Kf4 {[%clk 0:00:22.1]} 70... Kf8 {[%clk 0:00:09.6]} 71. Kxf5 {[%clk
0:00:20.4]} 71... Kg7 {[%clk 0:00:10]} 72. Ke5 {[%clk 0:00:20.3]} 72... Rg6
{[%clk 0:00:10.1]} 73. Rxd5 {[%clk 0:00:19.5]} 73... Rg4 {[%clk 0:00:10.4]} 74.
Kd6 {[%clk 0:00:16.8]} 74... Rxh4 {[%clk 0:00:10.5]} 75. Kc6 {[%clk 0:00:17]}
75... Rh1 {[%clk 0:00:09.2]} 76. Rg5+ {[%clk 0:00:16.4]} 76... Kf6 {[%clk
0:00:09.1]} 77. Rg8 {[%clk 0:00:16.6]} 77... Rc1+ {[%clk 0:00:08]} 78. Kd6
{[%clk 0:00:16.5]} 78... h4 {[%clk 0:00:08]} 79. d5 {[%clk 0:00:16.9]} 79... h3
{[%clk 0:00:07.7]} 80. Rh8 {[%clk 0:00:16.8]} 80... Rc3 {[%clk 0:00:04.8]} 81.
Kd7 {[%clk 0:00:16.4]} 81... Kg7 {[%clk 0:00:03.6]} 82. Rh4 {[%clk 0:00:15.9]}
82... Kf6 {[%clk 0:00:02.3]} 83. d6 {[%clk 0:00:16.1]} 83... Kg5 {[%clk
0:00:02.5]} 84. Rh8 {[%clk 0:00:16.1]} 84... f5 {[%clk 0:00:02.5]} 85. Ke7
{[%clk 0:00:15.3]} 85... Re3+ {[%clk 0:00:02.3]} 86. Kf7 {[%clk 0:00:15.6]}
86... Rd3 {[%clk 0:00:02.5]} 87. Ke7 {[%clk 0:00:15.5]} 87... Kg4 {[%clk
0:00:01.7]} 88. d7 {[%clk 0:00:15.3]} 88... f4 {[%clk 0:00:01.9]} 89. Rg8+
{[%clk 0:00:15.1]} 89... Kf3 {[%clk 0:00:01.8]} 90. Rh8 {[%clk 0:00:15]} 90...
Kg2 {[%clk 0:00:01.8]} 91. Rg8+ {[%clk 0:00:15.3]} 91... Kh1 {[%clk 0:00:01.6]}
92. Rf8 {[%clk 0:00:15.1]} 1-0

[Event "Late-Titled-Tuesday-Blitz-March-26-2024"]
[Site "Chess.com"]
[Date "2024.03.26"]
[Round "7"]
[White "Arigu07"]
[Black "GoltsevDmitry2000"]
[Result "1/2-1/2"]
[WhiteElo "2572"]
[BlackElo "2791"]
[TimeControl "180+1"]
[EndTime "15:20:19 PDT"]
[Termination "Game drawn by stalemate"]

1. b3 {[%clk 0:03:00.9]} 1... Nf6 {[%clk 0:02:59.9]} 2. Bb2 {[%clk 0:03:00.7]}
2... g6 {[%clk 0:03:00.8]} 3. d4 {[%clk 0:02:59.4]} 3... Bg7 {[%clk 0:03:01.2]}
4. Nd2 {[%clk 0:02:59.9]} 4... b6 {[%clk 0:03:02.1]} 5. e4 {[%clk 0:03:00.3]}
5... d6 {[%clk 0:03:02.3]} 6. Bd3 {[%clk 0:02:59.6]} 6... O-O {[%clk 0:03:02.2]}
7. Qe2 {[%clk 0:03:00.1]} 7... Bb7 {[%clk 0:03:02.4]} 8. Ngf3 {[%clk 0:03:00.4]}
8... Nbd7 {[%clk 0:03:02.7]} 9. O-O-O {[%clk 0:02:57.5]} 9... a5 {[%clk
0:03:02.1]} 10. a4 {[%clk 0:02:55.1]} 10... c5 {[%clk 0:03:01.9]} 11. d5 {[%clk
0:02:38]} 11... Nh5 {[%clk 0:02:57.5]} 12. g3 {[%clk 0:02:34.9]} 12... e6 {[%clk
0:02:54.1]} 13. dxe6 {[%clk 0:02:33.3]} 13... fxe6 {[%clk 0:02:53]} 14. h4
{[%clk 0:02:15.6]} 14... Qe7 {[%clk 0:02:36.6]} 15. Bb5 {[%clk 0:02:10.2]} 15...
Ndf6 {[%clk 0:02:29.3]} 16. Rhe1 {[%clk 0:01:45.8]} 16... Ng4 {[%clk 0:02:28]}
17. Nc4 {[%clk 0:01:44.4]} 17... Bxb2+ {[%clk 0:02:26.8]} 18. Kxb2 {[%clk
0:01:45.3]} 18... Qf6+ {[%clk 0:02:26.9]} 19. e5 {[%clk 0:01:12.1]} 19... Qxf3
{[%clk 0:02:23.8]} 20. Qxf3 {[%clk 0:01:10.6]} 20... Bxf3 {[%clk 0:02:24.7]} 21.
Rxd6 {[%clk 0:01:11]} 21... Ng7 {[%clk 0:02:21.2]} 22. Nxb6 {[%clk 0:01:10.6]}
22... Rad8 {[%clk 0:02:21]} 23. Nd7 {[%clk 0:01:09.5]} 23... Rfe8 {[%clk
0:02:20.7]} 24. Nxc5 {[%clk 0:01:08.9]} 24... Rxd6 {[%clk 0:02:13]} 25. exd6
{[%clk 0:01:07.5]} 25... Rd8 {[%clk 0:02:13.6]} 26. Nxe6 {[%clk 0:01:03.6]}
26... Nxe6 {[%clk 0:02:12.7]} 27. Rxe6 {[%clk 0:01:04.5]} 27... Bd5 {[%clk
0:02:08.6]} 28. Bc4 {[%clk 0:00:58.5]} 28... Bxc4 {[%clk 0:02:02.6]} 29. bxc4
{[%clk 0:00:57.7]} 29... Kf7 {[%clk 0:02:01]} 30. Re7+ {[%clk 0:00:57.3]} 30...
Kf6 {[%clk 0:02:01.4]} 31. c5 {[%clk 0:00:56.7]} 31... Nxf2 {[%clk 0:02:01.8]}
32. Rc7 {[%clk 0:00:27.1]} 32... Ne4 {[%clk 0:01:59.3]} 33. d7 {[%clk
0:00:25.8]} 33... Nxg3 {[%clk 0:01:56.5]} 34. c6 {[%clk 0:00:23.8]} 34... Nf5
{[%clk 0:01:44.2]} 35. Rc8 {[%clk 0:00:20.5]} 35... Ke7 {[%clk 0:01:44.1]} 36.
c7 {[%clk 0:00:21.1]} 36... Rxd7 {[%clk 0:01:43.9]} 37. Re8+ {[%clk 0:00:21.5]}
37... Kxe8 {[%clk 0:01:43.5]} 38. c8=Q+ {[%clk 0:00:22.4]} 38... Ke7 {[%clk
0:01:38.9]} 39. Qc5+ {[%clk 0:00:22.9]} 39... Nd6 {[%clk 0:01:38.9]} 40. Qe5+
{[%clk 0:00:21.9]} 40... Kf7 {[%clk 0:01:38.6]} 41. Ka2 {[%clk 0:00:21.9]} 41...
Nb7 {[%clk 0:01:31.3]} 42. Qf4+ {[%clk 0:00:20.3]} 42... Ke6 {[%clk 0:01:29.8]}
43. Qe4+ {[%clk 0:00:19.9]} 43... Kd6 {[%clk 0:01:29.4]} 44. c4 {[%clk 0:00:20]}
44... Kc5 {[%clk 0:01:26.2]} 45. Kb3 {[%clk 0:00:15.2]} 45... Kb6 {[%clk
0:01:23.4]} 46. Qe6+ {[%clk 0:00:13.8]} 46... Kc7 {[%clk 0:01:23.8]} 47. Qe5+
{[%clk 0:00:13.9]} 47... Kc6 {[%clk 0:01:23.5]} 48. Qb5+ {[%clk 0:00:14]} 48...
Kc7 {[%clk 0:01:23.9]} 49. c5 {[%clk 0:00:14.5]} 49... Rd3+ {[%clk 0:01:15.9]}
50. Kc4 {[%clk 0:00:13.4]} 50... Rd1 {[%clk 0:01:07.7]} 51. Qb6+ {[%clk
0:00:13.7]} 51... Kc8 {[%clk 0:01:07.9]} 52. c6 {[%clk 0:00:13.3]} 52... Nd8
{[%clk 0:01:06]} 53. Qa6+ {[%clk 0:00:12.9]} 53... Kb8 {[%clk 0:01:01.3]} 54.
Qb6+ {[%clk 0:00:09.9]} 54... Kc8 {[%clk 0:01:01.6]} 55. Qa6+ {[%clk 0:00:09.8]}
55... Kb8 {[%clk 0:00:59.7]} 56. Qb5+ {[%clk 0:00:09.2]} 56... Kc8 {[%clk
0:00:57.3]} 57. Qxa5 {[%clk 0:00:07.9]} 57... Rc1+ {[%clk 0:00:56.6]} 58. Kd5
{[%clk 0:00:08.1]} 58... Nxc6 {[%clk 0:00:50.8]} 59. Qa8+ {[%clk 0:00:07.7]}
59... Kc7 {[%clk 0:00:50.9]} 60. Qh8 {[%clk 0:00:06.7]} 60... Rd1+ {[%clk
0:00:49.4]} 61. Kc5 {[%clk 0:00:06.1]} 61... Rc1+ {[%clk 0:00:49.8]} 62. Kb5
{[%clk 0:00:06.2]} 62... Rb1+ {[%clk 0:00:46.5]} 63. Kc4 {[%clk 0:00:06.4]}
63... h5 {[%clk 0:00:44.6]} 64. Qh7+ {[%clk 0:00:06.3]} 64... Kb8 {[%clk
0:00:44]} 65. Qg8+ {[%clk 0:00:06.4]} 65... Kb7 {[%clk 0:00:43.4]} 66. Qg7+
{[%clk 0:00:06.7]} 66... Kb8 {[%clk 0:00:42.2]} 67. Kc5 {[%clk 0:00:06.8]} 67...
Nd8 {[%clk 0:00:12.6]} 68. Qxg6 {[%clk 0:00:06.3]} 68... Rc1+ {[%clk 0:00:13.1]}
69. Kb4 {[%clk 0:00:06]} 69... Nc6+ {[%clk 0:00:13]} 70. Ka3 {[%clk 0:00:06.5]}
70... Kb7 {[%clk 0:00:04.4]} 71. Qxh5 {[%clk 0:00:06.6]} 71... Rc3+ {[%clk
0:00:04.7]} 72. Kb2 {[%clk 0:00:07.1]} 72... Re3 {[%clk 0:00:03.6]} 73. Qb5+
{[%clk 0:00:07.4]} 73... Kc7 {[%clk 0:00:03.4]} 74. h5 {[%clk 0:00:08.1]} 74...
Re5 {[%clk 0:00:03.7]} 75. Qc4 {[%clk 0:00:06.7]} 75... Kb6 {[%clk 0:00:03]} 76.
h6 {[%clk 0:00:06.8]} 76... Rh5 {[%clk 0:00:02.7]} 77. Qb3+ {[%clk 0:00:05.3]}
77... Kc7 {[%clk 0:00:01.2]} 78. Qg3+ {[%clk 0:00:05.2]} 78... Kb6 {[%clk
0:00:02.1]} 79. Qg7 {[%clk 0:00:05.9]} 79... Rh2+ {[%clk 0:00:02.2]} 80. Kc3
{[%clk 0:00:06.3]} 80... Na5 {[%clk 0:00:02.1]} 81. Qd4+ {[%clk 0:00:06]} 81...
Ka6 {[%clk 0:00:02.3]} 82. Qd6+ {[%clk 0:00:06]} 82... Kb7 {[%clk 0:00:02.5]}
83. Qxh2 {[%clk 0:00:06.9]} 83... Nc6 {[%clk 0:00:02.9]} 84. Qg2 {[%clk
0:00:06.8]} 84... Kb6 {[%clk 0:00:03.8]} 85. Qxc6+ {[%clk 0:00:07.7]} 85... Ka5
{[%clk 0:00:04.2]} 86. h7 {[%clk 0:00:08.6]} 1/2-1/2